Cogmind - Beta 11.2 @@@ ROGUE MODE // 2023.01.04 @ 17:17:34 Player: yota99 Result: Destroyed by D-53 Grenadier with Mini Grenade Launcher Performance ------------- Evolutions (0) 0 Regions Visited (2) 400 Robots Destroyed (19) 95 Value Destroyed (442) 442 Prototype IDs (0) 0 Alien Tech Used (0) 0 Bonus (0) 0 TOTAL SCORE: 937 Bonus ------- None Cogmind --------- Core Integrity 0/250 Matter 266/300 Energy 230/250 System Corruption 0% Temperature Cool (0) Movement Walking (120) Location -10/Mines Parts ------- > --- POWER (1) -------- Ion Engine > --- PROPULSION (2) --- Carbon-fiber Leg Flexi-carbon Leg > --- UTILITY (2) ------ Large Storage Unit Light Armor Plating > --- WEAPON (2) ------- Light Assault Rifle > --- INVENTORY (15) --- Ion Engine Ion Engine Cooling System Cooling System Improved Terrain Scanner Seismic Detector Seismic Detector Light Armor Plating Beamcaster Assault Rifle Light Assault Rifle Light Assault Rifle Peak State ------------ > --- POWER ------------ Ion Engine > --- PROPULSION ------- Carbon-fiber Leg Flexi-carbon Leg > --- UTILITY ---------- Large Storage Unit Improved Terrain Scanner > --- WEAPON ----------- Light Assault Rifle Grenade Launcher > --- INVENTORY -------- Ion Engine Ion Engine Cooling System Cooling System Seismic Detector Seismic Detector Light Armor Plating Light Armor Plating Beamcaster Assault Rifle Light Assault Rifle Light Assault Rifle [Rating: 16] Favorites ----------- Power Ion Engine Engine Ion Engine Propulsion Light Treads Treads Light Treads Leg Carbon-fiber Leg Utility Large Storage Unit Device Seismic Detector Storage Large Storage Unit Protection Light Armor Plating Weapon Light Assault Rifle Ballistic Gun Light Assault Rifle Launcher Grenade Launcher Build | -11 -10 -10 ------- Run | Scr Mat Min Slots Evolved . | . . . Power . | . . . Propulsion . | . . . Utility . | . . . Weapon . | . . . Parts Attached 19 | 7 2 10 Power 3 | 1 1 1 Engine 3 | 1 1 1 Core . | . . . Reactor . | . . . Propulsion 4 | 2 . 2 Treads 2 | 2 . . Leg 2 | . . 2 Wheel . | . . . Hover . | . . . Flight . | . . . Utility 6 | 2 1 3 Device 2 | 1 . 1 Storage 2 | 1 1 . Processor . | . . . Hackware . | . . . Protection 2 | . . 2 Artifact . | . . . Weapon 6 | 2 . 4 Energy Gun . | . . . Energy Cannon . | . . . Ballistic Gun 4 | 2 . 2 Ballistic Cannon . | . . . Launcher 2 | . . 2 Special Weapon . | . . . Impact Weapon . | . . . Slashing Weapon . | . . . Piercing Weapon . | . . . Special Melee Weapon . | . . . Unidentified Prototypes . | . . . Parts Lost 3 | . . 3 Power 1 | . . 1 Propulsion 1 | . . 1 Utility . | . . . Weapon 1 | . . 1 Highest Loss Streak 2 | . . 2 To Critical Strikes . | . . . Average Slot Usage (%) 95 | . 100 91 Engine 12 | . 14 10 Treads 21 | . 28 13 Leg 4 | . . 10 Device 12 | . 14 10 Storage 14 | . 14 14 Protection 1 | . . 3 Ballistic Gun 23 | . 28 18 Launcher 4 | . . 9 Naked Turns . | . . . Heaviest Build 32 | 14 29 32 Greatest Support 40 | 40 40 40 Greatest Overweight (x) 1 | . . 1 Average Overweight (x) . | . . . Largest Inventory Capacity 15 | 8 15 15 Average Capacity 12 | 7 12 15 Most Carried 14 | 4 10 14 Average Carried 8 | 1 8 11 Final Capacity 15 | 8 15 15 Final Carried 12 | 4 10 12 Class Distribution -------------------- 84% | Mutant 15% | Scavenger-Mutant Dominant Class ---------------- Mutant | -10/Materials Mutant | -10/Mines Resources | -11 -10 -10 ----------- Run | Scr Mat Min Matter Collected 679 | 334 152 193 Remotely . | . . . Salvage Created 630 | 138 383 109 Parts 40 | 10 25 5 Haulers Intercepted . | . . . Recyclers Shooed 3 | 2 . 1 Parts Field Recycled . | . . . Retrieved Matter . | . . . Parts Self-Destructed . | . . . Prevented . | . . . Kills | -11 -10 -10 ------- Run | Scr Mat Min Combat Hostiles Destroyed 22 | . 7 15 Guns 11 | . 7 4 AOE 11 | . . 11 Classes Destroyed 7 | 2 2 3 Tunneler 2 | 2 . . Recycler 1 | 1 . . Watcher 2 | . 2 . Swarmer 6 | . . 6 Grunt 7 | . 7 . Demolisher 1 | . . 1 Assembled 8 | . . 8 Best Kill Streak 7 | 2 6 7 Combat Bots Only 7 | . 6 7 Max Kills in Single Turn 3 | 1 1 3 Gunslinging . | . . . Exploded 3 | . . 3 Melee . | . . . Uniques/NPCs Destroyed . | . . . Combat | -11 -10 -10 -------- Run | Scr Mat Min Damage Taken 941 | . 346 595 Core 274 | . 122 152 Absorbed by Shields . | . . . Core Remaining (%) 100 | 100 . . Volleys Fired 70 | 16 34 20 Largest 2 | 2 2 2 Hottest 50 | 40 40 50 Shots Fired 138 | 32 68 38 Gun 130 | 32 68 30 Cannon . | . . . Launcher 8 | . . 8 Special . | . . . Kinetic 130 | 32 68 30 Thermal . | . . . Explosive 8 | . . 8 Electromagnetic . | . . . Robot Hit Streak 13 | 4 13 6 Robot Miss Streak 4 | 2 4 4 Penetration Max . | . . . Secondary Targets 4 | . 1 3 Max Gunslinging Chain 1 | . 1 1 Shots Hit Robots 87 | 19 48 20 Core Hits 48 | 4 21 23 Critical Kills . | . . . Critical Parts Destroyed . | . . . Critical Strikes . | . . . Melee Attacks . | . . . Impact . | . . . Slashing . | . . . Piercing . | . . . Sneak Attacks . | . . . Combat Hostiles . | . . . Follow-up Attacks . | . . . Damage Inflicted 1307 | 209 507 591 Guns 851 | 209 507 135 Cannons . | . . . Explosions 456 | . . 456 Melee . | . . . Ramming . | . . . Kinetic 851 | 209 507 135 Thermal . | . . . Explosive 456 | . . 456 Electromagnetic . | . . . Impact . | . . . Slashing . | . . . Piercing . | . . . Highest Corruption . | . . . Average Corruption . | . . . Corruption Purged . | . . . Corruption Blocked . | . . . Overload Shots . | . . . Overflow Damage 3 | . . 3 Projectiles . | . . . Explosions 3 | . . 3 Melee . | . . . Knockbacks . | . . . Impact . | . . . Kinetic . | . . . Secondary . | . . . Self-Inflicted Damage 116 | . . 116 Shots 4 | . . 4 Rammed . | . . . Targets Rammed . | . . . Kicked . | . . . Crushed . | . . . Highest Temperature 40 | . 18 40 Average Temperature 10 | . 8 13 Received Heat Transfer 319 | . 219 100 Siege Activations . | . . . Robots Corrupted . | . . . Combat Hostiles . | . . . Parts Fried . | . . . Impact Corruptions . | . . . Robots Melted . | . . . Combat Hostiles . | . . . Parts Melted . | . . . Heat Transferred . | . . . Parts Sabotaged . | . . . Parts Stolen . | . . . Parts Stripped . | . . . Power Chain Reactions . | . . . Missiles Intercepted . | . . . Alert | -11 -10 -10 ------- Run | Scr Mat Min Peak Influence 300 | 15 239 300 Initial 24 | . 9 24 Average 125 | 7 124 162 Maximum Alert Level 1 | . 1 1 Low Security (%) 86 | 100 81 87 Level 1 13 | . 18 12 Level 2 . | . . . Level 3 . | . . . Level 4 . | . . . Level 5 . | . . . High Security . | . . . Max Security . | . . . Squads Dispatched 1 | . 1 . Investigation . | . . . Extermination . | . . . Reinforcement 1 | . 1 . Assault . | . . . Garrison . | . . . Intercept . | . . . Searches Triggered . | . . . Construction Impeded . | . . . Haulers Reinforced . | . . . Active Scanning Responses . | . . . Cargo Convoy Interrupts . | . . . Stealth | -11 -10 -10 --------- Run | Scr Mat Min Distress Signals 3 | . 3 . Communications Jammed . | . . . Distress Signals . | . . . Times Spotted 30 | . 13 17 Peak Tracking Total 10 | . 10 8 Tactical Retreats 2 | . . 2 Traps | -11 -10 -10 ------- Run | Scr Mat Min Traps Triggered . | . . . Indirectly . | . . . Trap Hack Attempts . | . . . Triggered . | . . . Disarmed . | . . . Reprogrammed . | . . . Reused . | . . . Traps Extracted . | . . . Installed . | . . . Triggered . | . . . Machines | -11 -10 -10 ---------- Run | Scr Mat Min Machines Disabled . | . . . Max in Single Turn . | . . . Machines Sabotaged . | . . . Garrisons Compromised . | . . . Overloaded Fab Kills . | . . . Hacking | -11 -10 -10 --------- Run | Scr Mat Min Machines Accessed 2 | . 2 . Terminals 2 | . 2 . Fabricators . | . . . Repair Stations . | . . . Recycling Units . | . . . Scanalyzers . | . . . Garrison Access . | . . . Total Hacks 4 | . 4 . Successful 3 | . 3 . Failed 1 | . 1 . Catastrophic . | . . . Database Lockouts . | . . . Manual 6 | . 6 . Terminals 4 | . 4 . Fabricators . | . . . Repair Stations . | . . . Recycling Units . | . . . Scanalyzers . | . . . Garrison Access . | . . . Terminal Hacks 3 | . 3 . Robot Analysis 2 | . 2 . Branch Access Points 1 | . 1 . Fabricator Hacks . | . . . Repair Station Hacks . | . . . Recycling Unit Hacks . | . . . Scanalyzer . | . . . Garrison Access Hacks . | . . . Unauthorized Hacks . | . . . Terminals . | . . . Fabricators . | . . . Repair Stations . | . . . Recycling Units . | . . . Scanalyzers . | . . . Garrison Access . | . . . Data Cores Recovered . | . . . Used . | . . . Hacking Detections 1 | . 1 . Full Trace Events 1 | . 1 . Feedback Events . | . . . Feedback Blocked . | . . . Robot Schematics Acquired . | . . . Robots Built . | . . . Authchips . | . . . Time . | . . . Total Robot Build Rating . | . . . Part Schematics Acquired . | . . . Parts Built . | . . . Authchips . | . . . Time . | . . . Total Part Build Rating . | . . . Parts Repaired . | . . . Time . | . . . Parts Recycled . | . . . Recycled Matter . | . . . Retrieved Matter . | . . . Retrieved Components . | . . . Parts Scanalyzed . | . . . Part Schematics Acquired . | . . . Parts Damaged . | . . . Bothacking | -11 -10 -10 ------------ Run | Scr Mat Min Used RIF Installer . | . . . Robots Hacked . | . . . Non-combat . | . . . Combat . | . . . Robot Hacks Applied . | . . . Relay Couplers Released . | . . . Fabnet Peak Effective % . | . . . Robots Rewired . | . . . Allies Hacked . | . . . Hacks Repelled . | . . . Allies | -11 -10 -10 -------- Run | Scr Mat Min Total Allies . | . . . Largest Group . | . . . Highest-Rated Group . | . . . Highest-Rated Ally . | . . . Total Orders . | . . . Ally Attacks . | . . . Total Damage . | . . . Kills . | . . . Allies Corrupted . | . . . Allies Melted . | . . . Intel | -11 -10 -10 ------- Run | Scr Mat Min Robot Analysis Total 2 | . 2 . Derelict Logs Recovered 1 | . . 1 Drone Launches . | . . . Drone Recoveries . | . . . Exploration | -11 -10 -10 ------------- Run | Scr Mat Min Turns Passed 982 | 124 440 418 Spaces Moved 454 | 49 204 201 Core 15 | 15 . . Treads 326 | 34 204 88 Legs 113 | . . 113 Wheels . | . . . Hover . | . . . Flight . | . . . Fastest Speed 50 | 50 160 120 Average Speed 150 | 126 160 147 Slowest Speed 240 | 160 160 240 Overloaded Moves . | . . . Propulsion Burnouts . | . . . Robots Hopped . | . . . Cave-ins Triggered . | . . . Exploration Rate (%) 26 | 4 33 41 Regions Visited 2 Branch Regions 1 Pre-discovered Areas . | . . . Known Exits Taken 1 | . 1 . Unknown Exits Taken 1 | 1 . . Scrap Searched . | . . . Spaces Dug . | . . . Terrain Destroyed 78 | . . 78 Melee . | . . . Projectile . | . . . AOE 78 | . . 78 Terrain Rammed . | . . . Walls Destroyed . | . . . Machines Disabled . | . . . Actions | -11 -10 -10 --------- Run | Scr Mat Min Total 623 | 82 257 284 Wait 53 | . 6 47 Move 452 | 48 203 201 Hop . | . . . Pick Up 25 | 11 9 5 Fast Attach . | . . . Attach 10 | 7 . 3 Detach . | . . . Swap 9 | . 2 7 Drop 4 | . 3 1 Fire 70 | 16 34 20 Melee . | . . . Ram . | . . . Kick . | . . . Crush . | . . . Escape Stasis . | . . . Rewire . | . . . Trap . | . . . Miscellaneous . | . . . Route ------- -11/Scrapyard -10/Materials -10/Mines History --------- Turn | Location | Event 5 | -11/Scrapyard | Discovered new exit (range 15) 125 | -11/Scrapyard | Entered Materials 332 | -10/Materials | Build established: Mutant 524 | -10/Materials | Identified exit to Mines 565 | -10/Materials | Entered Mines 599 | -10/Mines | Learned 4 Materials zone layouts 665 | -10/Mines | Assembled infested the area 670 | -10/Mines | Assisted by a Guerilla fighting off Assembled 721 | -10/Mines | Core integrity fell below 50% 747 | -10/Mines | Destroyed 7 combat bots 980 | -10/Mines | Core integrity fell below 20% 983 | -10/Mines | Destroyed by D-53 Grenadier with Mini Grenade Launcher Last Messages --------------- 00849_ The unstable cave ceiling collapses. 00854_ U-05 Engineer lays Concrete. 00855_ K-01 Serf collects debris. 00855_ U-05 Engineer lays Concrete. 00886_ K-01 Serf collects debris. 00914_ S-10 Pest destroyed. 00914_ Destroyed Flight Unit. 00914_ S-10 Pest destroyed. 00916_ Acquired 6 matter. 00918_ Acquired 8 matter. 00919_ K-01 Serf collects debris. 00921_ The unstable cave ceiling collapses. 00921_ Lgt. Ion Engine crushed. 00931_ K-01 Serf collects debris. 00974_ U-05 Engineer builds a Wall. 00976_ D-53 Grenadier destroyed. 00979_ U-05 Engineer lays Concrete. 00980_ The unstable cave ceiling collapses. 00980_ U-05 Engineer builds a Wall. 00981_ Grenade Launcher destroyed. Map ----- +----------------------------------------------------+ | ?????????????????????????????????????? | | ?????????????????????????????????????? | | ?????????????????????????????????????? | | ?????????????????????????????????????? | | ?????????????????????????????????????? | | ?????????????????????????????????????? | | ?????????????????????????????????????? | | ?????????????????????????????????????? | | ?????????????????????????????????????? | | ????????????????????? ??????????????? | | ????????????????? ?? #??????????????? | | ???????????????? ### ???????????????? | | ???????????????? # #???#??????????? | | ???????????????? ###?????????????? | | ??????????????? # ###????????????? | | ??????????????#?? ##???????????? | | ??????????????? ? ????????????? | | ???????????????# ? " #????????????? | | ????????####???# ## # # #????????????? | | ????????? ##### # # # ##???#?###???? | | ?????????# ## # ### #####?# ##??# | | ?????????# ## u # ## #??? | | ?????????#=% d #??? | | ?????????# #??? | | ?????????### # % #??? | | ?????????# # #%#??#|## @ ##??? | | ?????????###% ##??# ## ##???? | | ????????### ##??# ## ##????? | | ????????# # !#??# ###?????? | | #????##### ##??### ##### #???????? | | ######### ## #?#???# #??## #???????? | | # ##?#???# #???# #???#???? | | ############ #????## ##### #???#???? | | #????###### #????# #???#???? | | ???????????# #???# ##??????? | | ?????????#?## #???# ########???????? | | ????????????# ##?# #???????#??????? | | ????????????# ### #?#???#????????? | | ???????#?????# #??#?????#?????? | | ?????????????# #??????????????? | | ?????????????## ####???????#??????? | | ??????#???????# ##?????#?#?????????? | | ?????????????## ##????????????#?????? | | ?????????????# ##????#????????##???? | | ?????????????# ###??????#####???#?? | | ???????????#?## ##??#??# ##????? | | ??????????????## ###### #????? | | ???????????????## ## #????? | | ????????????????## #?????? | | ????????????????### ###?#???? | +----------------------------------------------------+ Best States ------------- Heat Dissipation 25 Energy Generation 10 Energy Capacity 250 Matter Stores 300 Matter Capacity 300 Sight Range 16 Terrain Scan Range 16 Terrain Scan Density 10 Armor Coverage 150 Evasion (%) 55 Recoil Reduction 2 Item Schematics ----------------- None Robot Schematics ------------------ None Fabricated ------------ Nothing Alien Tech Used ----------------- None Achievements -------------- None Challenges ------------ None Game ------ Seed ChromaticLaserSaw Manual? 0 Play Time 00:10:41 Cumulative 16.5 hours Start 2023.01.04 @ 17:07:02 End 2023.01.04 @ 17:17:34 Sessions 1 Manual Loads 0 Difficulty Rogue Special Mode None Game No. 33 Rogue 33 Adventurer 0 Explorer 0 Win Type - Total 0 Types 0/0/0/0/0/0/0/0/0 Lore% 16 Gallery% 22 Achievement% 19 Wizard Run 0 Options --------- ASCII 0 Keyboard 0 Movement Mouse Keybinds 0 Fullscreen 2 Font 24/Terminus Map View 76x50 Tactical HUD 1 Map Filters NONE Filters NONE Steam 1 RUN: 0cbb2ee3-4f3e-4019-9d71-9693b5b65571